[Event "Bangabandhu Premier Div League 2022"]
[Site "Dhaka"]
[Date "2022.12.06"]
[Round "7.2"]
[White "Mohammed Abdul, Malek"]
[Black "Habibur Rahman, Sohel"]
[Result "0-1"]
[ECO "A45"]
[WhiteElo "2152"]
[BlackElo "1871"]
[Annotator "TA"]
[PlyCount "88"]
[EventDate "2022.12.01"]
[EventCountry "BAN"]
[SourceTitle "playchess.com"]
[Source "ChessBase"]
[SourceQuality "1"]
[TimeControl "40/5400+30:1800+30"]

{[%evp 9,88,24,40,30,16,12,53,42,73,67,77,62,62,47,77,70,64,47,47,6,0,-4,-4,-2,-8,-8,0,-8,0,-21,-19,-18,-15,-19,0,-40,24,19,20,7,27,0,0,0,0,0,0,0,0,0,90,91,103,103,162,-16,497,281,491,483,464,449,440,-141,-150,-227,-226,-208,-112,-110,-129,-220,-108,-607,-601,-1404,-1254,-1535,-1187,-29976,-6303]} 1. d4 {[%emt 0:00:03]} Nf6 {[%emt 0:07:08]} 2. g3 {[%emt 0:00:33]} g6 {[%emt 0:01:15]} 3. Bg2 {[%emt 0:00:04]} c5 {[%emt 0:01:16]} 4. d5 {[%emt 1:31:50]} d6 {[%emt 0:00:30]} 5. a4 {[%emt 0:00:00]} Bg7 {[%emt 0:01:35]} 6. e4 {[%emt 0:01:00] A45: Trompowsky Attack.} O-O {[%emt 0:02:16]} 7. Ne2 {[%emt 0:00:00] [#]} Qc7 $146 {[%emt 0:02:10]} ({Predecessor:} 7... Na6 8. O-O e6 9. dxe6 Bxe6 10. Nf4 Bg4 11. f3 Bc8 12. Nc3 Nb4 13. Be3 Re8 14. Nb5 Bf8 15. Qd2 d5 16. c3 {½-½ (52) Bernadskiy,V (2606)-Sadikhov,U (2490) Belgrade 2021}) 8. O-O {[%emt 0:00:00] White is slightly better.} Nbd7 {[%emt 0:04:58]} 9. Na3 {[%emt 0:01:30]} a6 {[%emt 0:01:22]} 10. c4 {[%emt 0:00:30]} Re8 {[%emt 1:13:00]} 11. Nc3 {[%emt 0:00:30]} b6 {[%emt 0:00:00]} 12. Re1 {[%emt 0:00:00]} Bb7 {[%emt 0:00:00]} 13. Nc2 {[%emt 0:01:00]} e6 {[%emt 0:01:30]} 14. Ne3 {[%emt 0:00:30][%cal Oa4a5]} exd5 {[%emt 0:00:00]} 15. Nexd5 {[%emt 0:00:00]} Nxd5 {[%emt 0:00:00]} 16. Nxd5 {[%emt 0:01:00]} Bxd5 {[%emt 0:00:00]} 17. Qxd5 {[%emt 0:00:00]} Rad8 {[%emt 0:00:00]} 18. Bg5 {[%emt 0:00:00]} Rc8 {[%emt 0:00:00]} 19. Qd2 {[%emt 0:00:00]} (19. Bf4 $5 {[%cal Rf4d6]}) 19... Ne5 {[%emt 0:00:00]} 20. b3 {[%emt 0:00:00]} Nc6 {[%emt 0:00:00]} 21. Rad1 {[%emt 0:00:00]} Nd4 {[%emt 0:00:00]} 22. Qd3 {[%emt 0:03:00]} a5 {[%emt 0:00:00]} (22... b5 $15) 23. h4 $11 {[%emt 0:00:30]} h6 {[%emt 0:00:00]} 24. Bc1 {[%emt 0:00:00]} Re7 {[%emt 0:00:00]} 25. g4 {[%emt 0:00:00]} Rce8 {[%emt 0:00:00]} 26. Bd2 {[%emt 0:00:00]} Qd7 {[%emt 0:06:30]} 27. Bh3 {[%emt 0:00:00]} Qb7 {[%emt 0:00:00][%cal Re7e4]} 28. Bg2 {[%emt 0:00:00]} Qc8 {[%emt 0:01:00]} 29. Qg3 {[%emt 0:03:00]} f5 {[%emt 0:00:00]} (29... Nc2 $11 {keeps the balance.}) 30. gxf5 $16 {[%emt 0:00:00]} (30. Qxd6 $6 Re6 31. Qg3 fxe4 $15) 30... gxf5 {[%emt 0:00:00]} 31. Bxh6 {[%emt 0:00:00]} (31. Qxd6 fxe4 32. Qg6 (32. Qxb6 $2 Qg4 $19) (32. Bxh6 $2 Re6 $19) 32... Qf5 33. Qxf5 Nxf5 $15) 31... Kh7 {[%emt 0:01:30]} (31... Qd7 $16) 32. h5 $2 {[%emt 0:00:00]} Bxh6 $4 {[%emt 0:00:00][%mdl 8192]} (32... Be5 $11 {and Black is okay.} 33. Qg6+ Kh8 34. exf5 Rg8) 33. Qg6+ $18 {[%emt 0:00:00][%mdl 64] Deflection} (33. Qxd6 $2 Rg7 34. Kf1 f4 35. Rxd4 cxd4 $19) 33... Kh8 {[%emt 0:00:00]} 34. Qxh6+ {[%emt 0:00:00]} Kg8 {[%emt 0:01:30][%cal Bh8g8,Bg8g7,Bg7h7][%mdl 32] [#]} 35. e5 $1 {[%emt 0:00:00] Bd5+ would kill now.} (35. Qxd6 fxe4 36. Re3 (36. Qxb6 $2 Rg7 $19) 36... Qe6 37. Rxd4 (37. Rxe4 $2 Qxd6 38. Rg4+ Kh7 $19) (37. Qf4 Qe5 $11) 37... cxd4 38. Qxd4 (38. Rg3+ Rg7 $15) 38... Qe5 39. Rxe4 Qxd4 40. Rxd4 Kh7 $14) 35... Rg7 {[%emt 0:00:30] Threatens to win with ...Qb7.} 36. Rd3 $2 {[%emt 0:00:00] [#]} (36. exd6 f4 37. Qxf4 Rf8 $14) ({White should try} 36. Kf1 $18 Rxg2 37. Kxg2) 36... Re6 $1 $40 {[%emt 0:00:30][%mdl 128] Black goes for the king. Really sharp!} (36... Rxe5 37. Rxe5 dxe5 38. Rg3 Rxg3 39. fxg3 $14) (36... Qb7 $2 37. Rg3 Rxg3 38. fxg3 $18) 37. Qd2 {[%emt 0:00:00]} (37. Qf4 $17 dxe5 38. Qh4) 37... dxe5 $19 {[%emt 0:00:00]} 38. Rg3 {[%emt 0:04:30]} e4 {[%emt 0:01:00]} (38... Qd8 $19 39. Qe3 Qf6 40. Rxg7+ (40. Bd5 $2 f4 $19) 40... Kxg7 41. Qg3+ Kh6) 39. Rxg7+ $17 {[%emt 0:00:00]} Kxg7 {[%emt 0:00:00]} 40. Re3 {[%emt 0:00:00]} (40. Qg5+ $17 {was worth a try.} Kh7 41. Re3) 40... f4 {[%emt 0:00:00]} (40... Qf8 $19 {Strongly threatening ...Kh7.} 41. Rg3+ Kh8) 41. Rh3 $2 {[%emt 0:00:00][%mdl 8192]} (41. h6+ $17 Kxh6 42. Rxe4 Rxe4 43. Bxe4 Qg4+ 44. Kf1) 41... Qf8 $19 {[%emt 0:31:30]} 42. h6+ {[%emt 0:32:00]} Kh7 {[%emt 0:00:00]} (42... Rxh6 43. Rxh6 Kxh6 44. Bxe4 $17) 43. Qd1 {[%emt 0:00:30]} Rg6 {[%emt 0:00:00] ( -> ...f3)} ({Inferior is} 43... Rxh6 44. Qg4 Nf3+ 45. Bxf3 exf3 46. Qxf3 $11 (46. Rxf3 $2 Rg6 $19)) 44. Qe1 {[%emt 0:00:00]} Nf3+ {[%emt 0:00:00] Weighted Error Value: White=0.84/Black=0.34} ({Weaker is} 44... Rxh6 45. Qxe4+ (45. Bxe4+ Kg7 $15) 45... Kg7 46. Qe5+ Qf6 47. Qc7+ Kg6 48. Be4+ Kg5 49. Rxh6 Kxh6 50. Qc8 $11 (50. Qh7+ Kg5 $11)) (44... f3 $142 45. Rg3 Ne2+ 46. Kh2 Rxh6+ 47. Bh3 Nxg3 48. fxg3 Qf5 49. g4 f2 50. Qe3 f1=N+ 51. Kg1 Nxe3 52. gxf5 Rxh3 53. f6 Rf3 54. Kh2 Nf1+ 55. Kh1 Rxf6 56. Kg2 e3 57. Kh3 e2 58. Kg4 e1=Q 59. Kg5 Qe5+ 60. Kh4 Rh6+ 61. Kg4 Nh2#) 0-1

[Event "Bangabandhu Premier Div League 2022"]
[Site "Dhaka"]
[Date "2022.12.06"]
[Round "7.2"]
[White "Rahman, Siddiqur"]
[Black "Ahmed, Shafiq"]
[Result "0-1"]
[ECO "A80"]
[WhiteElo "1970"]
[BlackElo "2092"]
[Annotator "TA"]
[PlyCount "98"]
[EventDate "2022.11.30"]
[EventType "team-tourn"]
[EventCountry "BAN"]
[SourceTitle "playchess.com"]
[Source "ChessBase"]
[SourceQuality "1"]
[TimeControl "40/5400+30:1800+30"]

{[%evp 9,98,0,0,4,7,7,39,41,45,16,16,20,33,1,4,5,16,0,0,0,17,15,18,13,0,0,42,50,49,8,12,17,39,13,27,29,41,36,54,37,58,17,36,-12,54,18,52,9,8,0,36,-34,-25,-42,-41,-5,-7,-9,-23,-17,-26,-49,-41,-88,-89,-89,-87,-90,-75,-363,-140,-147,-169,-177,-163,-439,-291,-432,-416,-502,-500,-491,-496,-497,-462,-748,-727,-550,-472,-29988,-29980]} 1. d4 {[%emt 0:00:40]} f5 {[%emt 0:00:46]} 2. f4 {[%emt 0:02:50]} Nf6 {[%emt 0:00:39]} 3. Nf3 {[%emt 0:00:15]} e6 {[%emt 0:00:11]} 4. e3 {[%emt 0:03:36]} Be7 {[%emt 0:00:19]} 5. Be2 {[%emt 0:00:36]} O-O {[%emt 0:00:43]} 6. O-O {[%emt 0:00:58] A80: Dutch Defence: Unusual White second moves.} d6 {[%emt 0:00:48]} 7. c4 {[%emt 0:01:26] [#]} Re8 $146 {[%emt 0:04:38]} ({Predecessor:} 7... Qe8 8. Nc3 Nbd7 9. Ng5 Bd8 10. Bf3 h6 11. Nh3 c6 12. b3 e5 13. d5 e4 {½-½ (39) Bumagin,V-Pavlov,V (2041) Gagarin 2009}) 8. Nc3 {[%emt 0:01:10] White is slightly better.} Nbd7 {[%emt 0:00:32][%cal Bb8d7,Bd7f6,Bf6e4,Be4c3][%mdl 32]} 9. b3 {[%emt 0:05:17]} Ne4 {[%emt 0:01:55]} 10. Bb2 {[%emt 0:00:29]} Ndf6 {[%emt 0:03:46]} 11. Qc2 {[%emt 0:07:16]} Nxc3 {[%emt 0:03:21]} 12. Bxc3 {[%emt 0:00:50]} Ne4 {[%emt 0:00:13]} 13. Bd3 {[%emt 0:03:52]} Nxc3 {[%emt 0:04:21]} 14. Qxc3 {[%emt 0:00:03]} Bf6 {[%emt 0:01:46]} 15. c5 {[%emt 0:01:47]} Bd7 {[%emt 0:02:00]} 16. Rac1 {[%emt 0:01:33]} Bc6 {[%emt 0:00:20]} 17. b4 {[%emt 0:00:30]} g5 {[%emt 0:05:59]} 18. fxg5 {[%emt 0:01:53]} Bxg5 {[%emt 0:00:05]} 19. Be2 {[%emt 0:01:15]} Bh6 {[%emt 0:01:10]} 20. Rce1 {[%emt 0:02:36]} Qd7 {[%emt 0:12:01]} 21. Bc4 {[%emt 0:04:50]} Qg7 {[%emt 0:08:33]} 22. Qb3 {[%emt 0:04:15]} d5 {[%emt 0:05:06]} 23. Bd3 {[%emt 0:03:27]} Rf8 {[%emt 0:00:27]} 24. Ne5 {[%emt 0:02:33]} Be8 {[%emt 0:00:58]} 25. b5 {[%emt 0:03:03]} (25. Rf3 {feels hotter.} Kh8 26. Rh3 Rg8 27. g3) 25... Qe7 {[%emt 0:04:06]} 26. c6 {[%emt 0:13:36]} (26. a4) (26. Be2 $14 {might be stronger.}) 26... b6 {[%emt 0:00:54]} (26... bxc6 27. bxc6 Bg7) (26... bxc6 $11 27. bxc6 Bg7) 27. Qa4 {[%emt 0:03:36]} Bg7 {[%emt 0:02:41][%cal Bh6g7,Bg7f6,Bf6e7,Be7d6][%mdl 32]} 28. Nf3 {[%emt 0:00:28]} Kh8 {[%emt 0:01:07]} 29. Kh1 {[%emt 0:00:59]} Bf6 {[%emt 0:03:12]} 30. Ne5 {[%emt 0:06:37]} (30. Ng1 $14) 30... Qg7 {[%emt 0:02:19]} 31. Nf3 {[%emt 0:01:59]} Rg8 {[%emt 0:00:05][%csl Gg8][%cal Rg7g2]} 32. Qc2 {[%emt 0:01:20]} Be7 {[%emt 0:04:13]} 33. g3 {[%emt 0:06:43]} Qh6 {[%emt 0:03:07]} 34. Qf2 {[%emt 0:01:01]} Bd6 {[%emt 0:01:59]} 35. Rg1 {[%emt 0:02:41]} a6 $1 {[%emt 0:00:30]} 36. a4 {[%emt 0:02:16]} (36. bxa6 $15 {is more appropriate.} Bxc6 37. Rb1) 36... axb5 $17 {[%emt 0:00:03]} 37. Bxb5 {[%emt 0:00:22]} Bh5 {[%emt 0:02:30]} 38. Nh4 {[%emt 0:01:52]} Rg7 {[%emt 0:01:50]} 39. Nf3 $2 {[%emt 0:02:43][%mdl 8192] [#] White does not recover from this.} (39. Ra1 $17 {was necessary.}) 39... Rag8 $2 {[%emt 0:05:07]} (39... Bxf3+ $1 $19 {has better winning chances.} 40. Qxf3 Rag8) 40. Ne5 {[%emt 0:00:18]} Bxe5 {[%emt 0:00:40]} 41. dxe5 {[%emt 0:30:01]} Rg4 {[%emt 0:30:06]} 42. e4 $2 {[%emt 0:04:40]} (42. Ra1) 42... Rxe4 {[%emt 0:01:44]} (42... fxe4 $2 {too greedy.} 43. Be2 $19) 43. Rxe4 {[%emt 0:00:18]} (43. Rgf1 {was called for.}) 43... fxe4 $19 {[%emt 0:00:19]} (43... dxe4 $2 {is the wrong capture.} 44. Be2 $19) 44. Rf1 {[%emt 0:01:26]} Bf3+ {[%emt 0:00:09]} 45. Kg1 {[%emt 0:00:03]} Rf8 {[%emt 0:03:13]} 46. Re1 {[%emt 0:01:30]} Qg7 {[%emt 0:00:42]} 47. Qd4 {[%emt 0:00:47]} (47. Qb2 $142) 47... h5 {[%emt 0:01:22][%cal Bh7h5,Bh5h4][%mdl 32]} 48. Be2 {[%emt 0:01:30]} h4 {[%emt 0:01:21]} 49. Kf2 {[%emt 0:00:40] [#]} (49. Bxf3 $19 Rxf3 50. Re3) 49... Qg4 {[%emt 0:03:06] Weighted Error Value: White=0.54/Black=0.22 (precise)} 0-1

[Event "Bangabandhu Premier Div League 2022"]
[Site "Dhaka"]
[Date "2022.12.06"]
[Round "7.3"]
[White "Abdul, Momin"]
[Black "Muthaiah AL"]
[Result "0-1"]
[ECO "B41"]
[WhiteElo "1900"]
[BlackElo "2454"]
[Annotator "TA"]
[PlyCount "136"]
[EventDate "2022.12.01"]
[EventCountry "BAN"]
[SourceTitle "playchess.com"]
[Source "ChessBase"]
[SourceQuality "1"]
[TimeControl "40/5400+30:1800+30"]

{[%evp 17,136,66,57,35,55,38,38,38,66,38,59,38,44,16,15,11,18,-23,5,0,0,-16,19,25,45,27,40,6,49,42,62,55,48,43,113,27,92,36,38,6,27,0,0,-24,-13,-25,-30,-93,-71,-75,-70,-86,-65,-81,-35,-65,-53,-128,-129,-131,-126,-136,-56,-50,-28,-34,-38,-158,-154,-220,-89,-133,-126,-176,-65,-66,-51,-62,-37,-29,-23,-50,-56,-52,-41,-67,-60,-86,22,12,21,0,45,38,44,11,51,39,40,0,0,0,0,-137,-112,-244,-281,-382,-389,-735,-670,-1374,-1194,-29976,-29977,-29988,-29988,-29992,-29993,-29993,-751]} 1. e4 {[%emt 1:31:00]} c5 {[%emt 0:03:45]} 2. Nf3 {[%emt 0:00:00]} a6 {[%emt 1:27:45]} 3. c4 {[%emt 0:00:00]} e6 {[%emt 0:00:30]} 4. Nc3 {[%emt 0:01:30]} Qc7 {[%emt 0:00:30]} 5. Be2 {[%emt 0:00:30]} d6 {[%emt 0:00:00]} 6. d4 {[%emt 0:00:00]} cxd4 {[%emt 0:00:00]} 7. Nxd4 {[%emt 0:00:00]} Nf6 {[%emt 0:00:00]} 8. O-O {[%emt 0:00:00]} Be7 {[%emt 0:02:00]} 9. Be3 {[%emt 0:02:00]} O-O {[%emt 0:00:30]} 10. b3 {[%emt 0:00:30] B41: Sicilian: Kan Variation: 5 c4.} b6 {[%emt 0:00:30]} 11. Qd2 {[%emt 0:00:30]} Bb7 {[%emt 0:00:00]} 12. f3 {[%emt 0:00:30] White is slightly better.} Nbd7 {[%emt 0:01:00] [#]} 13. Rfc1 $146 {[%emt 0:00:30]} ({Predecessor:} 13. Rfd1 Rac8 14. Rac1 Rfe8 15. Bd3 Qb8 16. Bb1 Bd8 17. g4 Bc7 18. h4 Ne5 19. Qf2 d5 20. g5 Nh5 21. cxd5 Ng6 22. Nde2 Nhf4 23. Nxf4 Nxf4 24. Qh2 Nxd5 25. Qd2 Nxe3 {0-1 (25) Sinn,K-Houhou,O (2247) Bad Zwesten 2006}) 13... Rac8 {[%emt 0:00:30]} 14. Bf1 {[%emt 0:00:30]} Qb8 {[%emt 0:00:30]} 15. Qf2 {[%emt 0:00:00]} Rfe8 {[%emt 0:00:30]} 16. Na4 {[%emt 0:01:00]} Bd8 {[%emt 0:00:30]} 17. Kh1 {[%emt 0:00:30]} Bc7 {[%emt 0:00:30]} 18. Ne2 {[%emt 0:00:30][%cal Ra4b6]} Bc6 {[%emt 0:00:30]} 19. Nac3 {[%emt 0:00:30]} Ba8 {[%emt 0:00:30]} 20. Ng3 {[%emt 0:00:30]} Ne5 {[%emt 0:00:30]} 21. Be2 {[%emt 0:00:30]} Rcd8 {[%emt 0:00:30]} 22. Rd1 {[%emt 0:00:30]} h6 {[%emt 0:00:30]} 23. Rac1 {[%emt 0:00:30]} Bc6 {[%emt 0:00:30]} 24. Bd4 {[%emt 0:00:30]} Ned7 {[%emt 0:00:30]} 25. b4 {[%emt 0:00:30]} Qa8 {[%emt 0:00:00] [#]} (25... Rc8 $14) 26. a4 {[%emt 0:00:30]} (26. Nd5 $1 $16 {[%cal Rd5c7][%mdl 512]} exd5 27. cxd5) 26... a5 {[%emt 0:00:00]} (26... Bb7 $11) 27. b5 {[%emt 0:00:00]} (27. bxa5 $16 bxa5 28. Nb5) 27... Bb7 $14 {[%emt 0:01:30]} 28. Bf1 {[%emt 0:01:00]} Rc8 {[%emt 0:00:30]} 29. Nb1 {[%emt 0:00:30]} Bd8 {[%emt 0:00:00]} 30. Be3 {[%emt 0:00:00]} Qb8 {[%emt 0:01:00]} 31. Qd2 {[%emt 0:01:00]} Nc5 {[%emt 0:00:00] Strongly threatening ...Nb3.} 32. Bxc5 (32. Qa2 $11) 32... Rxc5 {[%emt 0:01:00]} 33. Qf2 {[%emt 0:01:00]} h5 {[%emt 0:00:30]} 34. Bd3 {[%emt 0:00:00]} g6 {[%emt 0:00:00]} 35. Nd2 {[%emt 0:01:00]} h4 {[%emt 0:00:00]} (35... Nd7 $17) 36. Ngf1 h3 {[%emt 0:01:30]} 37. g4 {[%emt 0:00:00]} ({Better is} 37. g3 $1 $15) 37... d5 $17 {[%emt 0:00:30]} 38. Ng3 {[%emt 0:01:30]} Qf4 {[%emt 0:00:30] Against g5} 39. Qf1 {[%emt 0:00:00]} dxc4 {[%emt 0:00:00]} (39... Bc7 $17 {Hoping for ...dxe4.} 40. Nb3 dxe4 41. Nxc5 bxc5 42. fxe4 Nxe4 43. Bxe4 Bxe4+ 44. Kg1 Qxg4) 40. Rxc4 Rxc4 {[%emt 0:00:18]} 41. Nxc4 Bc7 {[%emt 0:01:12]} 42. Rd2 (42. Be2 $15) 42... Rd8 {[%emt 0:30:30][%cal Be8d8,Bd8d4,Bd4c4,Bc4c3][%mdl 32]} 43. Rf2 {[%emt 0:32:30] [#]} (43. Kg1 $17) 43... Kg7 {[%emt 0:00:30]} (43... Rxd3 $1 $19 {[%mdl 512]} 44. Qxd3 Nxg4) 44. Bc2 {[%emt 0:00:30]} Nh7 {[%emt 0:00:30]} 45. Ne2 {[%emt 0:00:30]} (45. Qa1+ $17 Nf6 46. Qc3) 45... Qg5 {[%emt 0:00:30]} (45... Qf6 $19 {...Ng5 is the strong threat.} 46. Qc1 Qe7) 46. Ng1 $15 {[%emt 0:00:30]} Qc5 {[%emt 0:00:30]} 47. Nxh3 {[%emt 0:00:30]} Rd4 {[%emt 0:00:30]} (47... Nf6 {looks sharper.} 48. Bd3 Rd4 49. Rc2 Nxe4 50. Nxa5 Qxc2 51. Bxc2 Nd2) 48. Ne3 {[%emt 0:00:30]} Nf6 {[%emt 0:00:30][%mdl 1024] Black has compensation.} 49. Ng2 {[%emt 0:00:30]} Rc4 {[%emt 0:00:30]} 50. Ne1 {[%emt 0:00:30]} Rc3 {[%emt 0:00:30]} 51. Rd2 {[%emt 0:00:00]} Qa3 {[%emt 0:00:00][%cal Of6g4] Black is much more active.} 52. Nf2 {[#]} Be5 {[%emt 0:01:00]} (52... Qc1 $1 $17 {[%cal Rc1d2]} 53. Rd1 Qf4) 53. Rd3 $11 {[%emt 0:00:00]} Qa1 {[%emt 0:00:00] And now ...Rxc2 would win.} 54. Kg2 (54. Rxc3 {simplifies} Qxc3 55. Qe2 Nd7 56. Ned3) 54... Qa2 {[%emt 0:01:00]} 55. Qe2 {[%emt 0:02:30]} Rc7 {[%emt 0:00:30]} 56. Bd1 {[%emt 0:00:00]} (56. Qd2 {is more complex.} Qa1 57. Qe3 Rc5 58. Rd1) 56... Qa1 {[%emt 0:00:30]} (56... Qxe2 {simplifies} 57. Bxe2 g5 58. Rd2 Rc3) 57. Bb3 {[%emt 0:01:00]} Nd7 {[%emt 0:00:30]} 58. Rd1 {[%emt 0:00:00]} (58. h4 {keeps more tension.} Nc5 59. Rd1 Qc3 60. Bc2) 58... Qa3 {[%emt 0:00:00]} 59. Rb1 {[%emt 0:00:00]} Rc3 60. Nc2 {[%emt 0:01:30]} (60. Qd2 $11 {keeps the balance.} Qe7 61. Ned3) 60... Qe7 {[%emt 0:00:57] White must now prevent ...Nc5.} 61. Nd3 {[%emt 0:00:00] Against Nc5. White does not recover from this.} (61. Ne3 $17 {is a better defense.}) 61... Qh4 $19 {[%emt 0:00:00]} 62. Nxe5 Nxe5 63. Ne3 $2 {[%emt 0:01:30]} (63. Qe1 Qxh2+ 64. Kxh2 Nxf3+ 65. Kg2 Nxe1+ 66. Rxe1 Rxb3 67. Kg1) 63... Qg5 {[%emt 0:02:03]} 64. Kf2 {[%emt 0:00:00]} Qf4 {[%cal Oc3e3] ( -> ...Rxe3!)} 65. Bd1 {[%emt 0:00:00] [#]} Rxe3 $1 {[%emt 0:00:00][%mdl 576] Double Attack. Black mates.} 66. Qb2 (66. Rb3 Rxe4) 66... Bxe4 {[%emt 0:01:30]} 67. Kg2 {[%emt 0:00:00]} Bxf3+ {[%emt 0:00:00]} 68. Bxf3 {[%emt 0:00:00]} Qxf3+ {[%emt 0:01:00] Weighted Error Value: White=0.28 (precise) /Black=0.23 (precise)} 0-1

[Event "Bangabandhu Premier Div League 2022"]
[Site "Dhaka"]
[Date "2022.12.06"]
[Round "7.4"]
[White "Harikrishnan.A.Ra"]
[Black "Jannatul, Ferdous"]
[Result "1-0"]
[ECO "B13"]
[WhiteElo "2409"]
[BlackElo "1861"]
[Annotator "TA"]
[PlyCount "65"]
[EventDate "2022.12.01"]
[EventCountry "BAN"]
[SourceTitle "playchess.com"]
[Source "ChessBase"]
[SourceQuality "1"]
[TimeControl "40/5400+30:1800+30"]

{[%evp 18,65,52,49,79,75,82,90,88,81,91,54,56,64,50,41,46,47,78,86,89,82,102,97,83,91,113,85,149,120,149,71,160,85,93,89,160,161,171,175,172,147,275,260,260,218,233,231,225,227]} 1. e4 {[%emt 0:03:10]} c6 {[%emt 0:00:28]} 2. d4 {[%emt 0:00:06]} d5 {[%emt 0:00:05]} 3. exd5 {[%emt 0:00:03]} cxd5 {[%emt 0:00:05]} 4. Bd3 {[%emt 0:00:03]} Nc6 {[%emt 0:00:23]} 5. c3 {[%emt 0:00:02]} Nf6 {[%emt 0:00:34]} 6. Bf4 {[%emt 1:30:06]} e6 {[%emt 1:31:55]} 7. Nf3 {[%emt 0:00:30]} Bd6 {[%emt 0:00:00]} 8. Bxd6 {[%emt 0:00:30]} Qxd6 {[%emt 0:01:00]} 9. O-O {[%emt 0:00:30]} O-O {[%emt 0:00:00]} 10. Re1 {[%emt 0:00:30]} Re8 {[%emt 0:00:00] B13: Caro-Kann: Exchange Variation and Panov-Botvinnik Attack.} 11. Ne5 a6 {[%emt 0:01:30]} 12. Nd2 {[%emt 0:00:00][%cal Bb1d2,Bd2b3,Bb3c5][%mdl 32]} b5 {[%emt 0:00:00] White is better.} 13. a3 {[#]} Na5 $146 {[%emt 0:00:00][%cal Bc6a5,Ba5c4,Bc4b2][%mdl 32]} ({Predecessor:} 13... Bb7 14. f4 Ne7 15. g4 Ng6 16. Qf3 Nd7 17. Qg3 Ndf8 18. Rf1 Rad8 19. Rae1 f6 20. Nxg6 hxg6 {1-0 (37) Fasiello,A (1988)-Cammarota,V (1884) Gallipoli 2013}) 14. b4 {[%emt 0:00:00]} Nc4 {[%emt 0:00:00]} 15. Nb3 Nb2 {[%emt 0:02:00]} 16. Qd2 {[%emt 0:00:00]} Nxd3 {[%emt 0:00:00]} 17. Qxd3 {[%emt 0:00:00]} (17. Nxd3 {simplifies} Nd7 18. Qf4 Qxf4 19. Nxf4 Nb6 20. Nd3) 17... Bb7 {[%emt 0:00:00]} 18. a4 {[%emt 0:00:00]} Bc6 {[%emt 0:00:00]} 19. Nc5 {[%emt 0:00:00]} bxa4 {[%emt 0:00:00]} 20. Nxc6 {[%emt 0:00:00] White is much more active.} (20. Nxa6 $6 Rec8 $11) (20. Nxa4 Bb5 21. Qc2 Nd7 $14) 20... Qxc6 {[%emt 0:00:00]} 21. Rxa4 {[%emt 0:00:00]} Qb5 {[%emt 0:00:00]} 22. Qc2 {[%emt 0:00:00]} (22. Rxa6 $2 Qxd3 23. Nxd3 Rxa6 $19) 22... Reb8 {[%emt 0:00:00] [#]} (22... Rec8 $142) 23. Rea1 $1 $16 {[%emt 0:00:00][%cal Be1a1,Ba1a4,Ba4a8,Ba8c8][%mdl 32]} Rb6 {[%emt 0:00:00]} 24. h3 {[%emt 0:00:00]} (24. Ra5 $142 Qc6 25. Qa4) 24... g6 {[%emt 0:00:00]} (24... Ne8 $142) 25. f3 (25. Ra5 $142 Qc4 26. Qd2) 25... Ne8 {[%emt 0:05:00]} 26. Ra5 {[%emt 0:08:00]} Qc4 {[%emt 0:00:30]} (26... Qc6 $142) 27. R1a4 {[%emt 0:00:30][%cal Ob4b5] Strongly threatening b5!} Rb5 {[%emt 0:00:00]} 28. Rxa6 {[%emt 0:00:30]} (28. Nxa6 $2 {too greedy.} Rxa5 29. Rxa5 Rxa6 $19) 28... Rxa6 {[%emt 0:00:00]} 29. Nxa6 {[%emt 0:00:30] aiming for Nc5.} Kg7 {[%emt 0:00:11]} (29... Qc8 $16 30. Qd2 (30. Nc5 Rb8 $16) 30... Nd6) 30. Nc5 $18 {[%emt 0:00:30]} e5 {[%emt 0:01:49]} 31. Ra8 {[%emt 0:00:00]} ({Don't play} 31. dxe5 $6 d4 $16) 31... Nd6 {[%emt 0:00:00]} 32. dxe5 Nf5 {[%emt 0:01:00] [#]} 33. Rc8 $1 {[%emt 0:00:00] Weighted Error Value: White=0.14 (very precise) /Black=0.18 (very precise)} 1-0